[Event "*** Titled Tuesday Blitz"]
[Site "Chess.com"]
[Date "2020.02.04"]
[Round "8"]
[White "Poghosyan_Suren"]
[Black "M1711"]
[Result "0-1"]
[WhiteElo "2655"]
[BlackElo "2531"]
[TimeControl "180+2"]
[EndTime "14:54:57 PST"]
[Termination "M1711 won by resignation"]

1. Nf3 {[%clk 0:03:01.9]} 1... c5 {[%clk 0:02:59.9]} 2. g3 {[%clk 0:03:01.4]}
2... Nc6 {[%clk 0:03:00.2]} 3. Bg2 {[%clk 0:03:02.3]} 3... g6 {[%clk 0:03:01.8]}
4. O-O {[%clk 0:03:02.6]} 4... Bg7 {[%clk 0:03:03.3]} 5. c4 {[%clk 0:03:03.9]}
5... d6 {[%clk 0:03:04.7]} 6. Nc3 {[%clk 0:03:04.4]} 6... e6 {[%clk 0:03:06]} 7.
b3 {[%clk 0:03:05.2]} 7... Nge7 {[%clk 0:03:06.7]} 8. Bb2 {[%clk 0:03:06.4]}
8... O-O {[%clk 0:03:08.3]} 9. e3 {[%clk 0:03:07.6]} 9... b6 {[%clk 0:03:07.2]}
10. d4 {[%clk 0:03:07.9]} 10... Bb7 {[%clk 0:03:06.2]} 11. d5 {[%clk 0:02:58.1]}
11... exd5 {[%clk 0:03:03.1]} 12. cxd5 {[%clk 0:02:50.2]} 12... Nb4 {[%clk
0:02:58.1]} 13. e4 {[%clk 0:02:48]} 13... Ba6 {[%clk 0:02:57.9]} 14. Qd2 {[%clk
0:02:30.6]} 14... Bxf1 {[%clk 0:02:57]} 15. Bxf1 {[%clk 0:02:30.8]} 15... Qc8
{[%clk 0:02:52.3]} 16. Nb5 {[%clk 0:02:26.9]} 16... Bxb2 {[%clk 0:02:15.7]} 17.
Qxb2 {[%clk 0:02:28.8]} 17... Rd8 {[%clk 0:02:16.9]} 18. Qf6 {[%clk 0:02:20.8]}
18... Qd7 {[%clk 0:02:15.9]} 19. Qh4 {[%clk 0:02:09.3]} 19... h5 {[%clk
0:01:40.8]} 20. a3 {[%clk 0:01:44.9]} 20... a6 {[%clk 0:01:28.3]} 21. Nxd6
{[%clk 0:01:25.1]} 21... Qxd6 {[%clk 0:01:04.4]} 22. axb4 {[%clk 0:01:27]} 22...
cxb4 {[%clk 0:01:06.3]} 23. Rxa6 {[%clk 0:01:13]} 23... Rxa6 {[%clk 0:01:04.9]}
24. Bxa6 {[%clk 0:01:14.9]} 24... Ra8 {[%clk 0:00:40.8]} 25. Bc4 {[%clk
0:01:12.7]} 25... f6 {[%clk 0:00:31.2]} 26. Qf4 {[%clk 0:01:04.6]} 26... Rd8
{[%clk 0:00:14.6]} 27. e5 {[%clk 0:01:01.8]} 27... fxe5 {[%clk 0:00:15]} 28.
Nxe5 {[%clk 0:01:03.7]} 28... Rf8 {[%clk 0:00:16.4]} 29. Qg5 {[%clk 0:01:03.7]}
29... Rf5 {[%clk 0:00:10.7]} 30. Qxe7 {[%clk 0:01:02.6]} 30... Qxe7 {[%clk
0:00:05]} 31. d6+ {[%clk 0:01:03.5]} 31... Kg7 {[%clk 0:00:03.1]} 32. dxe7
{[%clk 0:00:53.6]} 32... Rxe5 {[%clk 0:00:04.4]} 33. f4 {[%clk 0:00:51.6]} 33...
Rxe7 {[%clk 0:00:05.3]} 34. Kf2 {[%clk 0:00:53.5]} 34... Ra7 {[%clk 0:00:04.7]}
35. h3 {[%clk 0:00:52.8]} 35... Ra2+ {[%clk 0:00:04.5]} 36. Kf3 {[%clk
0:00:54.7]} 36... Rc2 {[%clk 0:00:05.3]} 37. Bd5 {[%clk 0:00:50.3]} 37... Rc3+
{[%clk 0:00:05.8]} 38. Kf2 {[%clk 0:00:51.2]} 38... Kf6 {[%clk 0:00:05.9]} 39.
g4 {[%clk 0:00:51.9]} 39... Rxh3 {[%clk 0:00:06.5]} 40. gxh5 {[%clk 0:00:25.1]}
40... Rxh5 {[%clk 0:00:07.7]} 41. Bc4 {[%clk 0:00:19.3]} 41... Rh3 {[%clk
0:00:08.7]} 42. Kg2 {[%clk 0:00:13]} 42... Rc3 {[%clk 0:00:09.5]} 43. Bd5 {[%clk
0:00:14.1]} 43... Kf5 {[%clk 0:00:10.3]} 44. Bf7 {[%clk 0:00:14.4]} 44... Kxf4
{[%clk 0:00:09]} 45. Kf2 {[%clk 0:00:16.3]} 45... g5 {[%clk 0:00:09.7]} 46. Ke2
{[%clk 0:00:17.7]} 46... g4 {[%clk 0:00:11]} 47. Kf2 {[%clk 0:00:19.6]} 47...
g3+ {[%clk 0:00:12.4]} 48. Kg2 {[%clk 0:00:21.5]} 48... Rc2+ {[%clk 0:00:13.7]}
49. Kg1 {[%clk 0:00:23.2]} 49... Ke3 {[%clk 0:00:13.2]} 50. Bd5 {[%clk
0:00:23.5]} 50... Rb2 {[%clk 0:00:14.1]} 51. Kf1 {[%clk 0:00:23.7]} 51... g2+
{[%clk 0:00:14]} 52. Kg1 {[%clk 0:00:24.5]} 52... Kd4 {[%clk 0:00:14.9]} 53. Bc4
{[%clk 0:00:20.7]} 53... Kc3 {[%clk 0:00:14.9]} 54. Bg8 {[%clk 0:00:21.3]} 54...
Rxb3 {[%clk 0:00:15.5]} 55. Kxg2 {[%clk 0:00:23.2]} 55... Rb2+ {[%clk
0:00:16.3]} 56. Kf1 {[%clk 0:00:23.5]} 56... Rd2 {[%clk 0:00:18.2]} 57. Ke1
{[%clk 0:00:24.7]} 57... Rd4 {[%clk 0:00:15.5]} 58. Ke2 {[%clk 0:00:24.4]} 58...
b3 {[%clk 0:00:16.3]} 59. Ke3 {[%clk 0:00:26.3]} 59... b2 {[%clk 0:00:16.9]} 60.
Ke2 {[%clk 0:00:28.2]} 60... b5 {[%clk 0:00:17.4]} 61. Bh7 {[%clk 0:00:28.3]}
61... b4 {[%clk 0:00:18.4]} 62. Bb1 {[%clk 0:00:28.2]} 62... b3 {[%clk 0:00:19]}
63. Bf5 {[%clk 0:00:29]} 63... Rh4 {[%clk 0:00:19]} 64. Bb1 {[%clk 0:00:28.8]}
64... Rh1 {[%clk 0:00:19.9]} 65. Be4 {[%clk 0:00:30.1]} 65... b1=Q {[%clk
0:00:20.9]} 66. Bxb1 {[%clk 0:00:30.6]} 66... Rxb1 {[%clk 0:00:22.8]} 0-1

[Event "*** Titled Tuesday Blitz"]
[Site "Chess.com"]
[Date "2020.02.04"]
[Round "8"]
[White "AlexandraBotez"]
[Black "Sjakkerntobi"]
[Result "0-1"]
[WhiteElo "2166"]
[BlackElo "2256"]
[TimeControl "180+2"]
[EndTime "14:54:58 PST"]
[Termination "Sjakkerntobi won by resignation"]

1. d4 {[%clk 0:03:01.9]} 1... Nf6 {[%clk 0:02:59.9]} 2. c4 {[%clk 0:02:54.9]}
2... e6 {[%clk 0:03:01]} 3. Nf3 {[%clk 0:02:54.1]} 3... Bb4+ {[%clk 0:03:01.9]}
4. Bd2 {[%clk 0:02:45.8]} 4... Qe7 {[%clk 0:03:02.9]} 5. Nc3 {[%clk 0:02:40.5]}
5... O-O {[%clk 0:02:59.3]} 6. g3 {[%clk 0:02:41.4]} 6... Bxc3 {[%clk
0:02:59.4]} 7. Bxc3 {[%clk 0:02:37.3]} 7... Ne4 {[%clk 0:03:01]} 8. Qc2 {[%clk
0:02:34.5]} 8... Nxc3 {[%clk 0:03:01.3]} 9. Qxc3 {[%clk 0:02:34.1]} 9... d6
{[%clk 0:03:01.5]} 10. Bg2 {[%clk 0:02:33.7]} 10... Nd7 {[%clk 0:03:00]} 11. O-O
{[%clk 0:02:34]} 11... e5 {[%clk 0:03:00.4]} 12. e3 {[%clk 0:02:29.9]} 12... e4
{[%clk 0:02:41.1]} 13. Nd2 {[%clk 0:02:30.1]} 13... f5 {[%clk 0:02:42.1]} 14. b4
{[%clk 0:02:20.9]} 14... Nf6 {[%clk 0:02:36.1]} 15. c5 {[%clk 0:02:04.2]} 15...
Be6 {[%clk 0:02:17.5]} 16. Nc4 {[%clk 0:01:57.5]} 16... g5 {[%clk 0:02:04.9]}
17. Rfe1 {[%clk 0:01:55.9]} 17... Rad8 {[%clk 0:01:49.9]} 18. Rac1 {[%clk
0:01:50.8]} 18... Qf7 {[%clk 0:01:48.8]} 19. a4 {[%clk 0:01:48.4]} 19... Bd5
{[%clk 0:01:39.6]} 20. Nd2 {[%clk 0:01:27.3]} 20... Rde8 {[%clk 0:01:29.7]} 21.
cxd6 {[%clk 0:01:21.4]} 21... cxd6 {[%clk 0:01:30.3]} 22. Qc7 {[%clk 0:01:22.4]}
22... Re7 {[%clk 0:00:55.1]} 23. Qxd6 {[%clk 0:01:04.6]} 23... b6 {[%clk
0:00:40]} 24. b5 {[%clk 0:01:03.7]} 24... Ng4 {[%clk 0:00:26.7]} 25. h3 {[%clk
0:00:55.3]} 25... Rd7 {[%clk 0:00:25.6]} 26. Qb4 {[%clk 0:00:55]} 26... Nh6
{[%clk 0:00:25.3]} 27. Nc4 {[%clk 0:00:46.7]} 27... Qe6 {[%clk 0:00:21.5]} 28.
Ne5 {[%clk 0:00:47.4]} 28... Rg7 {[%clk 0:00:22.7]} 29. Rc3 {[%clk 0:00:37.8]}
29... f4 {[%clk 0:00:21.1]} 30. exf4 {[%clk 0:00:39.2]} 30... gxf4 {[%clk
0:00:23]} 31. Bxe4 {[%clk 0:00:38.4]} 31... fxg3 {[%clk 0:00:24.5]} 32. f3
{[%clk 0:00:34.8]} 32... Bxe4 {[%clk 0:00:23]} 33. Rxe4 {[%clk 0:00:28.4]} 33...
Qxh3 {[%clk 0:00:23.3]} 34. Qc4+ {[%clk 0:00:19.9]} 34... Kh8 {[%clk 0:00:21.4]}
35. Rc2 {[%clk 0:00:18.1]} 35... g2 {[%clk 0:00:22.4]} 36. Rc1 {[%clk
0:00:15.8]} 36... Qh1+ {[%clk 0:00:20.1]} 37. Kf2 {[%clk 0:00:15.9]} 37... g1=Q+
{[%clk 0:00:20.4]} 38. Rxg1 {[%clk 0:00:16.6]} 38... Qxg1+ {[%clk 0:00:22.3]}
39. Ke2 {[%clk 0:00:17.8]} 39... Rg2+ {[%clk 0:00:23]} 40. Kd3 {[%clk
0:00:17.2]} 40... Qd1+ {[%clk 0:00:22.7]} 41. Ke3 {[%clk 0:00:17.5]} 41... Qe1+
{[%clk 0:00:21.5]} 42. Kd3 {[%clk 0:00:17.4]} 42... Qd1+ {[%clk 0:00:20.2]} 43.
Kc3 {[%clk 0:00:17.5]} 43... Rc2+ {[%clk 0:00:20.5]} 44. Kb4 {[%clk 0:00:17.6]}
44... Rxc4+ {[%clk 0:00:22.4]} 45. Kxc4 {[%clk 0:00:17.7]} 45... Rc8+ {[%clk
0:00:22.4]} 46. Kd5 {[%clk 0:00:17.9]} 46... Qb3+ {[%clk 0:00:23.1]} 47. Kd6
{[%clk 0:00:19.1]} 47... Nf7+ {[%clk 0:00:23]} 48. Kd7 {[%clk 0:00:14.5]} 48...
Rd8+ {[%clk 0:00:22.3]} 49. Ke7 {[%clk 0:00:14.6]} 49... Nxe5 {[%clk 0:00:21.1]}
50. Kxd8 {[%clk 0:00:14.5]} 50... Qd5+ {[%clk 0:00:22.4]} 51. Ke7 {[%clk
0:00:13.5]} 51... Ng6+ {[%clk 0:00:22.7]} 52. Kf6 {[%clk 0:00:13.8]} 52... Qd8+
{[%clk 0:00:22.5]} 53. Kf7 {[%clk 0:00:13.6]} 53... Qf8+ {[%clk 0:00:22.1]} 54.
Ke6 {[%clk 0:00:14.9]} 54... Kg7 {[%clk 0:00:23.2]} 55. d5 {[%clk 0:00:14.3]}
55... Qe8+ {[%clk 0:00:22.9]} 56. Kf5 {[%clk 0:00:15.3]} 56... Qd7+ {[%clk
0:00:23.5]} 57. Kg5 {[%clk 0:00:12.3]} 57... Qxd5+ {[%clk 0:00:24.5]} 58. Kg4
{[%clk 0:00:13.9]} 58... h5+ {[%clk 0:00:25.3]} 59. Kg3 {[%clk 0:00:13.7]} 59...
h4+ {[%clk 0:00:26.5]} 60. Kg4 {[%clk 0:00:13.5]} 60... Qd7+ {[%clk 0:00:26.2]}
61. Kg5 {[%clk 0:00:10.1]} 61... h3 {[%clk 0:00:26.8]} 62. f4 {[%clk 0:00:10.7]}
62... h2 {[%clk 0:00:27.3]} 63. f5 {[%clk 0:00:12.1]} 63... Qd2+ {[%clk
0:00:24.5]} 64. Kg4 {[%clk 0:00:10.8]} 0-1

[Event "*** Titled Tuesday Blitz"]
[Site "Chess.com"]
[Date "2020.02.04"]
[Round "8"]
[White "Sibelephant"]
[Black "MatthewG-p4p"]
[Result "1-0"]
[WhiteElo "3064"]
[BlackElo "2835"]
[TimeControl "180+2"]
[EndTime "14:55:00 PST"]
[Termination "Sibelephant won by resignation"]

1. Nf3 {[%clk 0:03:00.7]} 1... g6 {[%clk 0:03:01.4]} 2. e4 {[%clk 0:03:01.1]}
2... Bg7 {[%clk 0:03:02.9]} 3. d4 {[%clk 0:03:02.3]} 3... d6 {[%clk 0:02:57.8]}
4. Bc4 {[%clk 0:03:03.2]} 4... e6 {[%clk 0:02:58.6]} 5. O-O {[%clk 0:03:03.8]}
5... Ne7 {[%clk 0:03:00.1]} 6. Bb3 {[%clk 0:03:04.3]} 6... O-O {[%clk
0:03:01.2]} 7. Re1 {[%clk 0:03:05.4]} 7... b6 {[%clk 0:03:01.7]} 8. Nbd2 {[%clk
0:03:05.1]} 8... Bb7 {[%clk 0:03:03]} 9. Nf1 {[%clk 0:03:06.1]} 9... Nd7 {[%clk
0:03:03.2]} 10. Ng3 {[%clk 0:03:06.5]} 10... h6 {[%clk 0:03:03.5]} 11. c3 {[%clk
0:03:06.4]} 11... c5 {[%clk 0:02:59.8]} 12. Bf4 {[%clk 0:03:04.4]} 12... cxd4
{[%clk 0:02:49.3]} 13. cxd4 {[%clk 0:03:04.4]} 13... e5 {[%clk 0:02:46.1]} 14.
Be3 {[%clk 0:03:03.8]} 14... Kh7 {[%clk 0:02:42.7]} 15. dxe5 {[%clk 0:03:00.3]}
15... Nxe5 {[%clk 0:02:28.7]} 16. Nxe5 {[%clk 0:02:22.5]} 16... dxe5 {[%clk
0:02:30.6]} 17. Rc1 {[%clk 0:02:16]} 17... Rc8 {[%clk 0:02:19.6]} 18. Qxd8
{[%clk 0:02:15.8]} 18... Rfxd8 {[%clk 0:02:03.3]} 19. Bxf7 {[%clk 0:02:16.7]}
19... Nc6 {[%clk 0:02:02.6]} 20. Bd5 {[%clk 0:02:02.9]} 20... Ba8 {[%clk
0:01:59]} 21. h4 {[%clk 0:01:56.6]} 21... Nb4 {[%clk 0:01:54.7]} 22. Bxa8 {[%clk
0:01:44.2]} 22... Rxa8 {[%clk 0:01:54.4]} 23. h5 {[%clk 0:01:41.4]} 23... Nd3
{[%clk 0:01:51.7]} 24. hxg6+ {[%clk 0:01:42.5]} 24... Kxg6 {[%clk 0:01:35.6]}
25. Rc6+ {[%clk 0:01:42.5]} 25... Kh7 {[%clk 0:01:37]} 26. Rd1 {[%clk
0:01:39.6]} 26... Nxb2 {[%clk 0:01:37.5]} 27. Rxd8 {[%clk 0:01:18.3]} 27... Rxd8
{[%clk 0:01:39.4]} 28. Nf5 {[%clk 0:01:11.5]} 28... Rd7 {[%clk 0:01:18.7]} 29.
Bxh6 {[%clk 0:00:58.5]} 29... Bxh6 {[%clk 0:01:14.9]} 30. Rxh6+ {[%clk
0:00:59.3]} 30... Kg8 {[%clk 0:01:16.7]} 31. g4 {[%clk 0:00:58.5]} 31... Nd3
{[%clk 0:01:14]} 32. g5 {[%clk 0:00:45.8]} 32... Nf4 {[%clk 0:01:13.3]} 33. Rc6
{[%clk 0:00:29.8]} 33... Kh7 {[%clk 0:01:02.1]} 34. Kh2 {[%clk 0:00:30.5]} 34...
Rd3 {[%clk 0:01:01.6]} 35. Rc7+ {[%clk 0:00:27.6]} 35... Kg6 {[%clk 0:00:58.7]}
36. Rg7+ {[%clk 0:00:23.1]} 36... Kh5 {[%clk 0:01:00.2]} 37. Ne3 {[%clk
0:00:24]} 37... Ne6 {[%clk 0:00:47.3]} 38. Re7 {[%clk 0:00:21]} 38... Nxg5
{[%clk 0:00:46.3]} 39. Rxe5 {[%clk 0:00:21.9]} 39... Kg6 {[%clk 0:00:48]} 40.
Kg3 {[%clk 0:00:13.6]} 40... Rd4 {[%clk 0:00:47.5]} 41. Kf4 {[%clk 0:00:10.1]}
41... Nh3+ {[%clk 0:00:47.9]} 42. Kg3 {[%clk 0:00:10.8]} 42... Ng5 {[%clk
0:00:49]} 43. f3 {[%clk 0:00:10.9]} 43... Rd3 {[%clk 0:00:50]} 44. Kf2 {[%clk
0:00:07.8]} 44... Nh3+ {[%clk 0:00:40.4]} 45. Kg2 {[%clk 0:00:05]} 45... Ng5
{[%clk 0:00:40]} 46. Nd5 {[%clk 0:00:04.2]} 46... Ra3 {[%clk 0:00:19.8]} 47. f4
{[%clk 0:00:04.8]} 47... Nf7 {[%clk 0:00:14.9]} 48. Re6+ {[%clk 0:00:05.7]}
48... Kg7 {[%clk 0:00:15.8]} 49. e5 {[%clk 0:00:04.9]} 49... Nh6 {[%clk
0:00:16.2]} 50. Ne7 {[%clk 0:00:04.1]} 50... Ng4 {[%clk 0:00:15.2]} 51. Rg6+
{[%clk 0:00:04.5]} 51... Kf7 {[%clk 0:00:16.2]} 52. Rxg4 {[%clk 0:00:05.6]}
52... Kxe7 {[%clk 0:00:17.8]} 53. Rg6 {[%clk 0:00:05.3]} 53... Kf7 {[%clk
0:00:18.7]} 54. f5 {[%clk 0:00:05.7]} 54... Rxa2+ {[%clk 0:00:18.3]} 55. Kf3
{[%clk 0:00:06.8]} 55... Ra4 {[%clk 0:00:18.8]} 56. e6+ {[%clk 0:00:07.3]} 56...
Ke7 {[%clk 0:00:19.5]} 57. Rg7+ {[%clk 0:00:08.6]} 57... Kd6 {[%clk 0:00:17.9]}
58. Rd7+ {[%clk 0:00:08.4]} 58... Kc6 {[%clk 0:00:18.1]} 59. f6 {[%clk
0:00:09.5]} 59... Ra1 {[%clk 0:00:18.2]} 60. f7 {[%clk 0:00:10.4]} 60... a5
{[%clk 0:00:19.3]} 61. Rd8 {[%clk 0:00:09.8]} 61... Rf1+ {[%clk 0:00:19.8]} 62.
Kg2 {[%clk 0:00:09.2]} 1-0

[Event "*** Titled Tuesday Blitz"]
[Site "Chess.com"]
[Date "2020.02.04"]
[Round "8"]
[White "Witik"]
[Black "heyiampotato"]
[Result "0-1"]
[WhiteElo "2578"]
[BlackElo "2470"]
[TimeControl "180+2"]
[EndTime "14:55:04 PST"]
[Termination "heyiampotato won by resignation"]

1. e4 {[%clk 0:02:58.9]} 1... c5 {[%clk 0:03:01]} 2. b4 {[%clk 0:02:55.2]} 2...
cxb4 {[%clk 0:02:57.8]} 3. a3 {[%clk 0:02:51.3]} 3... d5 {[%clk 0:02:50.4]} 4.
exd5 {[%clk 0:02:47.8]} 4... Nf6 {[%clk 0:02:43.4]} 5. axb4 {[%clk 0:02:27.5]}
5... Nxd5 {[%clk 0:02:42.2]} 6. b5 {[%clk 0:02:17.4]} 6... Bf5 {[%clk
0:02:26.8]} 7. Nf3 {[%clk 0:01:58.8]} 7... e6 {[%clk 0:02:24.9]} 8. d4 {[%clk
0:01:47.2]} 8... Bb4+ {[%clk 0:02:04.2]} 9. Bd2 {[%clk 0:01:46.1]} 9... O-O
{[%clk 0:01:51.9]} 10. c4 {[%clk 0:01:46]} 10... Bxd2+ {[%clk 0:01:52.6]} 11.
Qxd2 {[%clk 0:01:45.5]} 11... Nb6 {[%clk 0:01:49.5]} 12. Nc3 {[%clk 0:01:36.2]}
12... N8d7 {[%clk 0:01:26]} 13. c5 {[%clk 0:01:13.6]} 13... Nc8 {[%clk
0:01:25.8]} 14. Bc4 {[%clk 0:01:04.5]} 14... Nf6 {[%clk 0:01:25.9]} 15. O-O
{[%clk 0:00:58.2]} 15... Ne7 {[%clk 0:01:25.8]} 16. Rfe1 {[%clk 0:00:48.7]}
16... Ned5 {[%clk 0:01:21.6]} 17. Nh4 {[%clk 0:00:24.9]} 17... Nxc3 {[%clk
0:00:57.6]} 18. Nxf5 {[%clk 0:00:25.5]} 18... Nce4 {[%clk 0:00:53.6]} 19. Qf4
{[%clk 0:00:04.5]} 19... exf5 {[%clk 0:00:53.5]} 20. Rad1 {[%clk 0:00:03]} 20...
g6 {[%clk 0:00:46.3]} 21. c6 {[%clk 0:00:04.2]} 21... bxc6 {[%clk 0:00:46.8]}
22. bxc6 {[%clk 0:00:06.1]} 22... Qd6 {[%clk 0:00:42.5]} 23. Qxd6 {[%clk
0:00:03.1]} 23... Nxd6 {[%clk 0:00:43.4]} 24. Ba6 {[%clk 0:00:05]} 24... Nd5
{[%clk 0:00:38.7]} 25. Re5 {[%clk 0:00:04.9]} 25... Nc7 {[%clk 0:00:36]} 26. Be2
{[%clk 0:00:04.3]} 26... Rfe8 {[%clk 0:00:35.9]} 27. Bf3 {[%clk 0:00:05.5]}
27... Rab8 {[%clk 0:00:31.5]} 28. Ra5 {[%clk 0:00:06.1]} 28... a6 {[%clk
0:00:31.5]} 29. h4 {[%clk 0:00:07.4]} 29... Rb5 {[%clk 0:00:30.5]} 30. Ra4
{[%clk 0:00:08.2]} 30... Reb8 {[%clk 0:00:26.2]} 31. Kh2 {[%clk 0:00:08.4]}
31... Rb4 {[%clk 0:00:24.6]} 32. Ra5 {[%clk 0:00:08.9]} 32... R8b5 {[%clk
0:00:24.5]} 33. Raa1 {[%clk 0:00:08.5]} 33... a5 {[%clk 0:00:20.9]} 34. h5
{[%clk 0:00:09.7]} 34... Kg7 {[%clk 0:00:19.5]} 35. g3 {[%clk 0:00:08]} 35... a4
{[%clk 0:00:20.2]} 36. d5 {[%clk 0:00:09.1]} 36... Rb3 {[%clk 0:00:20.7]} 37.
Kg2 {[%clk 0:00:10.1]} 37... a3 {[%clk 0:00:21.6]} 38. Rd2 {[%clk 0:00:08.6]}
38... Rb2 {[%clk 0:00:21.2]} 39. Rd3 {[%clk 0:00:08.9]} 39... a2 {[%clk
0:00:17.5]} 40. Ra3 {[%clk 0:00:10]} 40... Nxd5 {[%clk 0:00:18]} 41. R3xa2
{[%clk 0:00:11.4]} 41... Rxa2 {[%clk 0:00:18.7]} 42. Rxa2 {[%clk 0:00:13.3]}
42... Nb6 {[%clk 0:00:18.1]} 43. Rc2 {[%clk 0:00:10]} 43... Nbc8 {[%clk
0:00:15.9]} 44. c7 {[%clk 0:00:10.5]} 44... Rb4 {[%clk 0:00:13.3]} 45. Rc6
{[%clk 0:00:10.5]} 45... Rc4 {[%clk 0:00:13.5]} 46. Rxc4 {[%clk 0:00:08.8]}
46... Nxc4 {[%clk 0:00:14.6]} 47. hxg6 {[%clk 0:00:10.2]} 47... hxg6 {[%clk
0:00:14.7]} 48. Bb7 {[%clk 0:00:11.3]} 48... N4d6 {[%clk 0:00:15.8]} 49. Ba6
{[%clk 0:00:12.7]} 49... Kf6 {[%clk 0:00:16.9]} 50. Kf3 {[%clk 0:00:13.9]} 50...
Ke5 {[%clk 0:00:17.4]} 51. Ke3 {[%clk 0:00:14.9]} 51... Kd5 {[%clk 0:00:18.8]}
52. Kf4 {[%clk 0:00:15.9]} 52... f6 {[%clk 0:00:18.8]} 53. f3 {[%clk 0:00:08.1]}
53... Kd4 {[%clk 0:00:17.4]} 54. g4 {[%clk 0:00:06.8]} 54... g5+ {[%clk
0:00:18.2]} 55. Kg3 {[%clk 0:00:07.4]} 55... f4+ {[%clk 0:00:19.1]} 56. Kf2
{[%clk 0:00:08.7]} 56... Kc5 {[%clk 0:00:19.4]} 57. Ke2 {[%clk 0:00:09.6]} 57...
Kb6 {[%clk 0:00:20.3]} 58. Bxc8 {[%clk 0:00:10.2]} 58... Nxc8 {[%clk 0:00:21]}
59. Kd3 {[%clk 0:00:12.1]} 59... Kxc7 {[%clk 0:00:22.1]} 60. Ke4 {[%clk
0:00:13.4]} 60... Kd6 {[%clk 0:00:23.6]} 61. Kf5 {[%clk 0:00:14.6]} 61... Ke7
{[%clk 0:00:24.9]} 62. Ke4 {[%clk 0:00:15.7]} 62... Nd6+ {[%clk 0:00:26.2]} 63.
Kd5 {[%clk 0:00:17.6]} 63... Nf7 {[%clk 0:00:26.8]} 0-1

[Event "*** Titled Tuesday Blitz"]
[Site "Chess.com"]
[Date "2020.02.04"]
[Round "8"]
[White "DonPreuss"]
[Black "lelya96"]
[Result "1/2-1/2"]
[WhiteElo "2236"]
[BlackElo "2459"]
[TimeControl "180+2"]
[EndTime "14:55:19 PST"]
[Termination "Game drawn by repetition"]

1. d4 {[%clk 0:03:01.9]} 1... Nf6 {[%clk 0:03:00.4]} 2. Nc3 {[%clk 0:03:01.8]}
2... e6 {[%clk 0:03:01.9]} 3. e4 {[%clk 0:03:02.8]} 3... d5 {[%clk 0:03:03]} 4.
exd5 {[%clk 0:03:03.8]} 4... exd5 {[%clk 0:03:00.8]} 5. Bd3 {[%clk 0:03:05.4]}
5... Be7 {[%clk 0:02:59.5]} 6. Nge2 {[%clk 0:03:06.8]} 6... c6 {[%clk
0:02:59.1]} 7. O-O {[%clk 0:03:06.1]} 7... O-O {[%clk 0:03:00.1]} 8. Ng3 {[%clk
0:03:07.5]} 8... Re8 {[%clk 0:02:58.2]} 9. Nh5 {[%clk 0:03:08.2]} 9... g6 {[%clk
0:02:55.9]} 10. Nxf6+ {[%clk 0:03:04.8]} 10... Bxf6 {[%clk 0:02:57]} 11. Ne2
{[%clk 0:03:06.1]} 11... Bg7 {[%clk 0:02:56.5]} 12. c3 {[%clk 0:03:07.1]} 12...
Nd7 {[%clk 0:02:57]} 13. f4 {[%clk 0:02:56.8]} 13... c5 {[%clk 0:02:52.7]} 14.
f5 {[%clk 0:02:49.1]} 14... cxd4 {[%clk 0:02:36.8]} 15. fxg6 {[%clk 0:02:49.4]}
15... hxg6 {[%clk 0:02:36.9]} 16. Nxd4 {[%clk 0:02:45.5]} 16... Ne5 {[%clk
0:02:35]} 17. Bc2 {[%clk 0:02:42.7]} 17... Bg4 {[%clk 0:02:35.2]} 18. Qd2 {[%clk
0:02:35]} 18... Nc4 {[%clk 0:02:20]} 19. Qf4 {[%clk 0:02:27.5]} 19... Qd7 {[%clk
0:02:11.6]} 20. h3 {[%clk 0:01:58]} 20... Be6 {[%clk 0:02:10.5]} 21. b3 {[%clk
0:01:51.9]} 21... Nd6 {[%clk 0:01:46.8]} 22. Ba3 {[%clk 0:01:33.2]} 22... Nb5
{[%clk 0:01:29]} 23. Nxb5 {[%clk 0:00:57.1]} 23... Qxb5 {[%clk 0:01:29.3]} 24.
Rae1 {[%clk 0:00:34.3]} 24... Qb6+ {[%clk 0:01:03.2]} 25. Kh1 {[%clk 0:00:33.9]}
25... Bxc3 {[%clk 0:01:02.3]} 26. Re3 {[%clk 0:00:31.2]} 26... Bd2 {[%clk
0:00:56.9]} 27. Qf6 {[%clk 0:00:27.8]} 27... Qxe3 {[%clk 0:00:22.7]} 28. Bb2
{[%clk 0:00:16.3]} 28... Qh6 {[%clk 0:00:22.1]} 29. Rf3 {[%clk 0:00:12.8]} 29...
Bg5 {[%clk 0:00:21.5]} 30. Qd4 {[%clk 0:00:13.1]} 30... Bc1 {[%clk 0:00:21.8]}
31. Bc3 {[%clk 0:00:12.7]} 31... Re7 {[%clk 0:00:21.2]} 32. Rg3 {[%clk
0:00:09.4]} 32... Be3 {[%clk 0:00:17.8]} 33. Qxe3 {[%clk 0:00:07.2]} 33... Qxe3
{[%clk 0:00:18]} 34. Rxe3 {[%clk 0:00:08.1]} 34... Bf5 {[%clk 0:00:19.4]} 35.
Rxe7 {[%clk 0:00:07.7]} 35... Bxc2 {[%clk 0:00:20.2]} 36. Rxb7 {[%clk
0:00:07.2]} 36... Be4 {[%clk 0:00:20.8]} 37. Bd4 {[%clk 0:00:07.6]} 37... a6
{[%clk 0:00:21.5]} 38. Kg1 {[%clk 0:00:07.6]} 38... Rc8 {[%clk 0:00:22.3]} 39.
Kf2 {[%clk 0:00:07.3]} 39... Kf8 {[%clk 0:00:21.3]} 40. Ke3 {[%clk 0:00:07.2]}
40... Ke8 {[%clk 0:00:21.5]} 41. g4 {[%clk 0:00:08.1]} 41... Rc6 {[%clk
0:00:22.4]} 42. a4 {[%clk 0:00:06.9]} 42... Re6 {[%clk 0:00:23.4]} 43. Kd2
{[%clk 0:00:07.6]} 43... Bf3 {[%clk 0:00:21.8]} 44. g5 {[%clk 0:00:08.8]} 44...
Re2+ {[%clk 0:00:22]} 45. Kc3 {[%clk 0:00:09.7]} 45... Re6 {[%clk 0:00:22.5]}
46. Bf6 {[%clk 0:00:10.7]} 46... Bg2 {[%clk 0:00:21.7]} 47. h4 {[%clk
0:00:11.2]} 47... Re3+ {[%clk 0:00:20.3]} 48. Kd4 {[%clk 0:00:12.4]} 48... Re4+
{[%clk 0:00:20.8]} 49. Kc5 {[%clk 0:00:13.7]} 49... Re6 {[%clk 0:00:21.1]} 50.
b4 {[%clk 0:00:11.9]} 50... d4 {[%clk 0:00:21.3]} 51. Rb8+ {[%clk 0:00:11.6]}
51... Kd7 {[%clk 0:00:22.7]} 52. Rd8+ {[%clk 0:00:12.9]} 52... Kc7 {[%clk
0:00:23.9]} 53. b5 {[%clk 0:00:11.2]} 53... axb5 {[%clk 0:00:23.7]} 54. axb5
{[%clk 0:00:12.1]} 54... Re1 {[%clk 0:00:24.8]} 55. Rxd4 {[%clk 0:00:11]} 55...
Rc1+ {[%clk 0:00:25.6]} 56. Kb4 {[%clk 0:00:11.6]} 56... Rb1+ {[%clk 0:00:26.5]}
57. Kc3 {[%clk 0:00:11.6]} 57... Rc1+ {[%clk 0:00:27.5]} 58. Kd2 {[%clk
0:00:12.8]} 58... Rb1 {[%clk 0:00:28.2]} 59. Ke3 {[%clk 0:00:10.3]} 59... Rxb5
{[%clk 0:00:28.6]} 60. Bd8+ {[%clk 0:00:10]} 60... Kc6 {[%clk 0:00:28.6]} 61.
Bf6 {[%clk 0:00:11.9]} 61... Rb3+ {[%clk 0:00:27.4]} 62. Kf4 {[%clk 0:00:12.1]}
62... Rh3 {[%clk 0:00:27.6]} 63. Kg4 {[%clk 0:00:12.1]} 63... Rh1 {[%clk
0:00:28.5]} 64. Rd8 {[%clk 0:00:12.5]} 64... Bd5 {[%clk 0:00:29.2]} 65. Rc8+
{[%clk 0:00:10.6]} 65... Kd6 {[%clk 0:00:29.2]} 66. Rd8+ {[%clk 0:00:12.1]}
66... Kc6 {[%clk 0:00:29.9]} 67. Rc8+ {[%clk 0:00:13.3]} 67... Kd7 {[%clk
0:00:31.1]} 68. Rd8+ {[%clk 0:00:14.3]} 68... Ke6 {[%clk 0:00:30.9]} 69. Re8+
{[%clk 0:00:15.2]} 69... Kd7 {[%clk 0:00:32.1]} 70. Rd8+ {[%clk 0:00:16.4]}
70... Kc6 {[%clk 0:00:32.6]} 1/2-1/2